fUSD/lending_fUSD_20260407
["ID","MTS","AMOUNT","RATE_DAILY","PERIOD"]
[419995956,1775592643394,-8029.6208621,0.00016,2]
[419995957,1775592643415,-101964.18597073,0.00016,2]
[419995967,1775592646584,-320.75612849,0.0001589,2]
[419995968,1775592646596,-1379.88985508,0.0001589,2]
[419995969,1775592646608,-299.35401643,0.0001589,2]
[419995970,1775592646618,-138044.38238739,0.00016,2]
[419995971,1775592646628,-252697.99757688,0.00016,2]
[419995972,1775592646644,-308.64834105,0.00016,2]
[419995973,1775592646671,-8593.39422696,0.00016,2]
[419995974,1775592646692,-1267.86,0.00016,2]
[419995975,1775592646704,-1359.97821871,0.00016,2]
[419995980,1775592654607,500.0,0.00010699,2]
[419995981,1775592654857,500.0,0.00010699,2]
[419995982,1775592654890,500.0,0.00010699,2]
[419995983,1775592654922,500.0,0.00010699,2]
[419995984,1775592654955,500.0,0.00010699,2]
[419995985,1775592654992,641.88498413,0.00010699,2]
[419995986,1775592655032,500.0,0.00010699,2]
[419995987,1775592655066,500.0,0.00010699,2]
[419995988,1775592655104,500.0,0.00010699,2]
[419995990,1775592684898,500.0,0.00010699,2]
[419995991,1775592684935,500.0,0.00010699,2]
[419995992,1775592685221,500.0,0.00010699,2]
[419995993,1775592685726,500.0,0.00010699,2]
[419995994,1775592685845,500.0,0.00010699,2]
[419995995,1775592686166,500.0,0.00010699,2]
[419995996,1775592686582,500.0,0.00010699,2]
[419995997,1775592687125,500.0,0.00010699,2]
[419995998,1775592687240,500.0,0.00010699,2]
[419995999,1775592687579,500.0,0.00010699,2]
[419996000,1775592693783,358.12501587,0.00010699,2]
[419996001,1775592693817,141.87498413,0.00010699,2]
[419996003,1775592776305,-500.0,0.00010699,2]
[419996004,1775592776341,-500.0,0.00010699,2]
[419996005,1775592776377,-500.0,0.00010699,2]
[419996006,1775592776412,-500.0,0.00010699,2]
[419996007,1775592776448,-500.0,0.00010699,2]
[419996008,1775592776485,-535.56425704,0.00010699,2]
[419996010,1775592815484,410.90224564,0.00010699,2]
[419996012,1775592932432,200.0604195,0.00015678,120]
[419996033,1775593833506,-927.33834116,0.00011507,2]
[419996034,1775593833523,-1246.26165884,0.00011507,2]
[419996035,1775593833533,-150.0,0.0001159,2]
[419996036,1775593833542,-232.55,0.0001187,2]
[419996037,1775593833551,-250.0,0.00012658,2]
[419996038,1775593833560,-510.59337334,0.00012749,2]
[419996039,1775593833570,-1200.0,0.00012999,2]
[419996040,1775593833580,-777.39343976,0.00013,2]
[419996041,1775593833596,-970.44892758,0.00013,2]
[419996042,1775593833608,-689.73213266,0.00013,2]
[419996043,1775593833618,-224.5859285,0.00013,2]
[419996044,1775593833630,-25.4140715,0.00013,2]
[419996045,1775593833640,-232.55,0.00013057,2]
[419996046,1775593833650,-300.0,0.00013099,2]
[419996047,1775593833659,-11.16761892,0.000131,2]
[419996048,1775593833671,-494.83238108,0.000131,2]
[419996049,1775593833680,-166.66,0.00013914,2]
[419996050,1775593833690,-506.0,0.00014145,2]
[419996051,1775593833700,-1110.14092618,0.00014146,2]
[419996052,1775593833713,-4490.01907382,0.00014146,2]
[419996053,1775593833722,-174.61919141,0.00014165,2]
[419996054,1775593833732,-151.0,0.00014165,2]
[419996055,1775593833741,-168.41,0.00014187,2]
[419996056,1775593833751,-150.0,0.000142,2]
[419996057,1775593833761,-166.66,0.00014207,2]
[419996058,1775593833771,-151.0,0.0001422,2]
[419996059,1775593833780,-1600.0,0.00014232,2]
[419996060,1775593833790,-232.55,0.00014245,2]
[419996061,1775593833799,-154.45,0.00014277,2]
[419996062,1775593833809,-1680.0,0.00014299,2]
[419996063,1775593833819,-420.0,0.00014364,2]
[419996064,1775593833829,-150.0,0.000144,2]
[419996065,1775593833838,-150.0,0.000144,2]
[419996066,1775593833848,-150.0,0.000144,2]
[419996067,1775593833857,-150.0,0.000144,2]
[419996068,1775593833867,-150.0,0.000144,2]
[419996069,1775593833877,-166.66,0.00014499,2]
[419996070,1775593833887,-150.0,0.00014503,2]
[419996071,1775593833897,-6433.56,0.00014504,2]
[419996072,1775593833906,-9999.99,0.00014504,2]
[419996073,1775593833916,-9572.89,0.00014504,2]
[419996074,1775593833926,-268.28805815,0.00014713,2]
[419996075,1775593833935,-166.66,0.00014792,2]
[419996076,1775593833944,-500.0,0.00014794,2]
[419996077,1775593833954,-500.0,0.00014794,2]
[419996078,1775593833963,-500.0,0.00014794,2]
[419996079,1775593833973,-500.0,0.00014794,2]
[419996080,1775593833984,-200.0,0.00014794,2]
[419996081,1775593833993,-500.0,0.00014794,2]
[419996082,1775593834002,-500.0,0.00014794,2]
[419996083,1775593834012,-500.0,0.00014794,2]
[419996084,1775593834022,-3434.38,0.00014803,2]
[419996085,1775593834032,-300.0,0.00015,2]
[419996086,1775593834042,-166.66,0.00015085,2]
[419996087,1775593834052,-506.0,0.00015191,3]
[419996088,1775593834061,-154.45,0.00015229,2]
[419996089,1775593834071,-474.66,0.00015283,2]
[419996090,1775593834080,-1000.0,0.000153,5]
[419996091,1775593834089,-200.0,0.00015342,2]
[419996092,1775593834098,-166.66,0.00015378,2]
[419996093,1775593834108,-165.5337,0.000154,2]
[419996094,1775593834117,-2000.0,0.000154,5]
[419996095,1775593834127,-232.55,0.00015432,2]
[419996096,1775593834136,-3000.0,0.000155,5]
[419996097,1775593834145,-500.0,0.00015525,2]
[419996098,1775593834155,-500.0,0.00015525,2]
[419996099,1775593834165,-204.60703617,0.00015525,2]
[419996100,1775593834175,-4000.0,0.000156,5]
[419996101,1775593834184,-146.01742355,0.00015624,2]
[419996109,1775593838005,-853.98257645,0.00015624,2]
[419996111,1775593838015,-150.0,0.00015625,2]
[419996113,1775593838025,-500.0,0.00015625,2]
[419996114,1775593838034,-150.0,0.00015625,2]
[419996115,1775593838044,-500.0,0.00015625,2]
[419996116,1775593838053,-46.01742355,0.00015625,2]
[419996117,1775593838065,-103.98257645,0.00015625,2]
[419996118,1775593838074,-500.0,0.00015625,2]
[419996119,1775593838083,-500.0,0.00015625,2]
[419996120,1775593838093,-287.9956919,0.00015625,2]
[419996121,1775593838102,-500.0,0.00015625,2]
[419996122,1775593838111,-500.01643822,0.00015625,2]
[419996123,1775593838121,-500.0,0.00015625,2]
[419996124,1775593838130,-500.0,0.00015625,2]
[419996125,1775593838139,-500.0,0.00015625,2]
[419996126,1775593838149,-500.0,0.00015625,2]
[419996127,1775593838158,-500.0,0.00015625,2]
[419996128,1775593838168,-500.0,0.00015625,2]
[419996129,1775593838177,-500.0,0.00015625,2]
[419996130,1775593838186,-500.0,0.00015625,2]
[419996131,1775593838198,-436.48877466,0.00015625,2]
[419996132,1775593838208,-150.0,0.00015647,2]
[419996133,1775593838218,-1572.0,0.0001568,2]
[419996134,1775593838228,-314.664,0.0001568,2]
[419996135,1775593838238,-6288.53,0.0001568,2]
[419996136,1775593838248,-183.520387,0.0001568,7]
[419996137,1775593838258,-197.280867,0.0001568,2]
[419996138,1775593838268,-160.0,0.0001568,7]
[419996139,1775593838278,-293.519346,0.0001568,7]
[419996140,1775593838287,-427.038693,0.0001568,7]
[419996141,1775593838297,-183.868207,0.0001568,7]
[419996142,1775593838306,-478.706723,0.0001568,2]
[419996143,1775593838315,-160.0,0.0001568,7]
[419996144,1775593838325,-383.426645,0.0001568,7]
[419996145,1775593838334,-606.853291,0.0001568,7]
[419996146,1775593838344,-11278.0326,0.00015699,2]
[419996147,1775593838354,-6773.602,0.00015699,2]
[419996148,1775593838365,-500.0,0.00015699,2]
[419996149,1775593838375,-500.0,0.00015699,2]
[419996150,1775593838384,-434.60077118,0.00015699,2]
[419996151,1775593838394,-2500.0,0.000157,2]
[419996152,1775593838404,-5000.0,0.000157,5]
[419996153,1775593838413,-403.93379858,0.000157,2]
[419996154,1775593838422,-823.66713808,0.000157,2]
[419996155,1775593838432,-292.7257272,0.000157,2]
[419996156,1775593838445,-1729.22235008,0.000157,2]
[419996157,1775593838455,-221.95871802,0.000157,2]
[419996158,1775593838464,-500.0,0.00015716,2]
[419996159,1775593838473,-500.0,0.00015716,2]
[419996160,1775593838483,-500.0,0.00015716,2]
[419996161,1775593838493,-258.35962106,0.00015716,2]
[419996162,1775593838502,-171.0,0.00015729,2]
[419996163,1775593838512,-871.95012592,0.00015731,2]
[419996164,1775593838521,-4624.76918492,0.00015731,2]
[419996165,1775593838547,-695.9,0.00015731,2]
[419996166,1775593838567,-311.88080462,0.00015731,2]
[419996167,1775593838578,-441.26728895,0.00015731,2]
[419996168,1775593838589,-2351.68166264,0.00015731,2]
[419996169,1775593838599,-250.0,0.00015741,2]
[419996170,1775593838609,-274.0,0.00015751,2]
[419996171,1775593838619,-1015.85052664,0.00015767,2]
[419996172,1775593838773,-216.22509039,0.00015784,2]
[419996173,1775593838782,-1357.12572217,0.00015789,2]
[419996174,1775593838794,-2167.95956152,0.00015789,2]
[419996175,1775593838806,-4808.94648525,0.00015789,2]
[419996178,1775593841948,-1928.03221699,0.00015789,2]
[419996179,1775593841958,-391.78814569,0.0001579,2]
[419996180,1775593841969,-197.43988117,0.00015799,2]
[419996181,1775593841978,-630.91416603,0.00015799,2]
[419996182,1775593841988,-241.03038206,0.00015799,2]
[419996183,1775593841998,-500.0,0.00015799,2]
[419996184,1775593842008,-178.53897136,0.00015799,2]
[419996185,1775593842018,-1435595.5206,0.000158,2]
[419996186,1775593842028,-1114360.4153,0.000158,2]
[419996187,1775593842038,-82016.14,0.000158,2]
[419996188,1775593842047,-1000.0,0.000158,5]
[419996189,1775593842057,-10262.06398593,0.00015811,2]
[419996190,1775593842066,-10262.06398593,0.00015833,2]
[419996191,1775593842075,-10262.06398593,0.00015856,2]
[419996192,1775593842085,-10262.06398593,0.00015878,2]
[419996193,1775593842094,-845.0,0.00015883,2]
[419996194,1775593842104,-1000.0,0.000159,2]
[419996195,1775593842114,-5000.0,0.000159,2]
[419996196,1775593842123,-10262.06398593,0.000159,2]
[419996197,1775593842134,-1000.0,0.000159,5]
[419996198,1775593842142,-250.0,0.00015929,2]
[419996199,1775593842152,-5160.0,0.00015934,2]
[419996200,1775593842160,-299.52766469,0.00015939,2]
[419996201,1775593842170,-3944.60426501,0.0001596,2]
[419996202,1775593842179,-366.74501953,0.00015973,2]
[419996203,1775593842190,-561.33456625,0.00015973,2]
[419996204,1775593842199,-352.48557695,0.00015973,2]
[419996205,1775593842208,-500.0,0.00015973,2]
[419996206,1775593842218,-706.0,0.0001598,2]
[419996207,1775593842228,-1000.0,0.00015982,2]
[419996208,1775593842237,-1000.0,0.00015982,2]
[419996209,1775593842247,-1000.0,0.00015982,2]
[419996210,1775593842257,-1000.0,0.00015982,2]
[419996211,1775593842267,-1000.0,0.00015982,2]
[419996212,1775593842277,-740.988,0.00015982,2]
[419996213,1775593842287,-3152.3563803,0.0001599,2]
[419996214,1775593842303,-11189.7480236,0.0001599,2]
[419996215,1775593842313,-391.78814569,0.0001599,2]
[419996216,1775593842323,-391.78814569,0.0001599,2]
[419996217,1775593842333,-5160.0,0.00015992,2]
[419996218,1775593842343,-5160.0,0.00015992,2]
[419996219,1775593842353,-151.0,0.00015997,2]
[419996220,1775593842363,-151.0,0.00015997,2]
[419996221,1775593842373,-151.0,0.00015997,2]
[419996222,1775593842383,-57636.64122845,0.00015999,5]
[419996223,1775593842394,-150.0,0.00016,2]
[419996224,1775593842404,-150.0,0.00016,2]
[419996225,1775593842414,-253728.090386,0.00016,2]
[419996226,1775593842712,-2078.89105707,0.00016,2]
[419996280,1775593846173,-500.0,0.00015229,2]
[419996281,1775593846183,-10.0,0.00015503,2]
[419996282,1775593846204,-490.0,0.00015503,2]
[419996283,1775593846214,-1627.20000004,0.00016,2]
[419996284,1775593846226,-5736.85633237,0.00016,2]
[419996285,1775593846241,-6537.52065869,0.00016,2]
[419996287,1775593939074,1824.84,0.000161,120]
[419996289,1775593997162,527.39,7.322e-05,2]
[419996290,1775593997261,527.39,7.708e-05,2]
[419996291,1775593997301,527.39,8.093e-05,2]
[419996292,1775593997349,527.39,8.478e-05,2]
[419996293,1775594006211,527.39,8.864e-05,2]
[419996294,1775594006421,527.39,9.249e-05,2]
[419996295,1775594006626,527.39,9.634e-05,2]
[419996296,1775594006842,527.39,0.0001002,2]
[419996297,1775594007043,527.39,0.00010405,2]
[419996298,1775594009009,527.39,0.0001079,2]
[419996299,1775594009060,527.39,0.00011176,2]
[419996304,1775594535075,500.0,0.00011561,2]
[419996305,1775594536331,500.0,0.00011561,2]
[419996306,1775594537477,151.0,0.00011561,2]
[419996307,1775594538063,151.0,0.00011561,2]
[419996308,1775594538640,151.0,0.00011561,2]
[419996309,1775594540994,151.0,0.00011561,2]
[419996310,1775594541056,151.0,0.00011561,2]
[419996311,1775594545776,1199.20597015,0.00011561,2]
[419996313,1775594841544,651.35145484,0.00011561,2]
[419996318,1775595032127,-527.39,0.00011561,2]
[419996319,1775595032138,-527.39,0.00011947,2]
[419996320,1775595032149,-527.39,0.00012332,2]
[419996321,1775595032160,-166.87862048,0.00012617,2]
[419996322,1775595032171,-527.39,0.00012717,2]
[419996323,1775595032180,-1200.0,0.00012999,2]
[419996324,1775595032191,-500.0,0.00013,2]
[419996325,1775595032201,-506.0,0.000131,2]
[419996326,1775595032211,-527.39,0.00013103,2]
[419996327,1775595032221,-334.1932644,0.00013488,2]
[419996328,1775595032234,-193.1967356,0.00013488,2]
[419996329,1775595032244,-300.0,0.00013779,2]
[419996330,1775595032254,-181.98,0.0001378,2]
[419996331,1775595032265,-527.39,0.00013873,2]
[419996332,1775595032275,-150.0,0.00013965,2]
[419996333,1775595032285,-1128.7132644,0.0001409,2]
[419996362,1775595032873,-1608.5667356,0.0001409,2]
[419996363,1775595032895,-150.0,0.000141,2]
[419996364,1775595032905,-506.0,0.00014162,2]
[419996365,1775595032916,-150.0,0.00014164,2]
[419996366,1775595032925,-578.20924308,0.00014165,2]
[419996367,1775595032935,-500.0,0.00014165,2]
[419996368,1775595032945,-1235.18214925,0.00014165,2]
[419996369,1775595032955,-200.0,0.00014165,2]
[419996370,1775595032965,-500.0,0.00014165,2]
[419996371,1775595032974,-500.0,0.00014165,2]
[419996372,1775595032984,-695.39793187,0.00014165,2]
[419996373,1775595032993,-500.0,0.00014165,2]
[419996374,1775595033003,-500.0,0.00014165,2]
[419996375,1775595033012,-500.0,0.00014165,2]
[419996376,1775595033022,-199.01,0.00014165,2]
[419996377,1775595033032,-151.0,0.00014165,2]
[419996378,1775595033042,-743.50770149,0.00014165,2]
[419996379,1775595033052,-302.00000001,0.00014165,2]
[419996380,1775595033061,-200.0,0.00014199,2]
[419996381,1775595033071,-500.0,0.0001422,2]
[419996382,1775595033081,-500.0,0.00014225,2]
[419996383,1775595033090,-527.39,0.00014259,2]
[419996384,1775595033100,-500.0,0.00014275,2]
[419996385,1775595033109,-150.0,0.000144,2]
[419996386,1775595033119,-150.0,0.000144,2]
[419996387,1775595033129,-150.0,0.000144,2]
[419996388,1775595033139,-150.0,0.000144,2]
[419996389,1775595033148,-150.0,0.000144,2]
[419996390,1775595033158,-150.0,0.000144,2]
[419996391,1775595033168,-150.0,0.000144,2]
[419996392,1775595033178,-150.0,0.000144,2]
[419996393,1775595033187,-150.0,0.000144,2]
[419996394,1775595033197,-150.0,0.000144,2]
[419996395,1775595033206,-500.0,0.00014438,2]
[419996396,1775595033216,-150.0,0.000145,2]
[419996397,1775595033226,-150.0,0.00014523,2]
[419996398,1775595033236,-150.0,0.00014578,2]
[419996399,1775595033245,-150.0,0.00014578,2]
[419996400,1775595033255,-150.0,0.000146,2]
[419996401,1775595033265,-500.0,0.00014625,2]
[419996402,1775595033275,-527.39,0.00014644,2]
[419996403,1775595033287,-150.0,0.00014646,2]
[419996404,1775595033297,-150.0,0.000147,2]
[419996405,1775595033308,-1280.88388878,0.00014713,2]
[419996406,1775595033318,-200.0,0.00014713,2]
[419996407,1775595033328,-799.54513345,0.00014713,2]
[419996408,1775595033338,-1573.0,0.0001472,2]
[419996409,1775595033351,-150.0,0.0001472,2]
[419996410,1775595033361,-150.0,0.0001472,2]
[419996411,1775595033370,-150.0,0.00014756,2]
[419996412,1775595033381,-150.0,0.00014756,2]
[419996413,1775595033391,-150.0,0.00014769,2]
[419996414,1775595033401,-150.0,0.000148,2]
[419996415,1775595033411,-150.0,0.000148,2]
[419996416,1775595033421,-150.0,0.00014892,2]
[419996417,1775595033431,-150.0,0.000149,2]
[419996418,1775595033441,-150.0,0.00014933,2]
[419996419,1775595033454,-150.0,0.00014933,2]
[419996420,1775595033464,-150.0,0.00015,2]
[419996421,1775595033474,-162.0,0.00015009,2]
[419996422,1775595033485,-1570.0,0.00015009,2]
[419996423,1775595033495,-150.0,0.00015015,2]
[419996424,1775595033505,-1573.0,0.0001504,2]
[419996425,1775595033515,-1573.0,0.0001504,2]
[419996426,1775595033525,-150.0,0.0001504,2]
[419996427,1775595033535,-150.0,0.0001504,2]
[419996428,1775595033546,-493.54914906,0.00015068,2]
[419996429,1775595033555,-420.0,0.00015099,2]
[419996430,1775595033565,-150.0,0.000151,2]
[419996431,1775595033575,-150.0,0.00015111,2]
[419996432,1775595033584,-150.0,0.00015111,2]
[419996433,1775595033594,-150.0,0.00015138,2]
[419996434,1775595033604,-150.0,0.000152,2]
[419996435,1775595033614,-150.0,0.000152,2]
[419996436,1775595033624,-506.0,0.00015224,3]
[419996437,1775595033634,-1328.27659266,0.00015261,2]
[419996438,1775595033645,-200.0,0.00015261,2]
[419996439,1775595033654,-150.0,0.00015262,2]
[419996440,1775595033664,-150.0,0.00015289,2]
[419996441,1775595033674,-150.0,0.00015289,2]
[419996442,1775595033684,-165.7906,0.000153,2]
[419996443,1775595033694,-150.0,0.000153,2]
[419996444,1775595033704,-258.96645984,0.00015301,2]
[419996445,1775595033714,-184.90213948,0.00015301,2]
[419996446,1775595033724,-150.99,0.0001531,2]
[419996447,1775595033734,-299.99,0.0001531,2]
[419996448,1775595033744,-9999.99,0.0001531,2]
[419996449,1775595033754,-3209.4,0.0001531,2]
[419996450,1775595033764,-999.99,0.0001531,2]
[419996451,1775595033773,-9999.99,0.0001531,2]
[419996452,1775595033783,-499.99,0.0001531,2]
[419996453,1775595033792,-150.99,0.0001531,2]
[419996454,1775595033802,-425.57,0.0001531,2]
[419996455,1775595033812,-2812.0,0.00015329,2]
[419996456,1775595033821,-150.0,0.0001536,2]
[419996457,1775595033831,-150.0,0.0001536,2]
[419996458,1775595033841,-150.0,0.00015385,2]
[419996459,1775595033851,-150.0,0.000154,2]
[419996460,1775595033861,-3400.0,0.000154,5]
[419996461,1775595033871,-160.0,0.00015449,2]
[419996462,1775595033880,-543.895458,0.00015449,2]
[419996463,1775595033890,-927.790916,0.00015449,2]
[419996464,1775595033900,-160.0,0.00015449,7]
[419996465,1775595033911,-165.354702,0.00015449,7]
[419996466,1775595033921,-170.709404,0.00015449,7]
[419996467,1775595033931,-150.0,0.00015467,2]
[419996468,1775595033941,-150.0,0.00015467,2]
[419996469,1775595033952,-179.717561,0.00015483,2]
[419996470,1775595033962,-160.0,0.00015483,2]
[419996471,1775595033972,-178.752155,0.00015483,2]
[419996472,1775595033983,-197.504311,0.00015483,2]
[419996473,1775595033993,-160.0,0.00015483,7]
[419996474,1775595034002,-466.979174,0.00015483,7]
[419996475,1775595034012,-773.958348,0.00015483,7]
[419996476,1775595034022,-354.607666,0.00015483,7]
[419996477,1775595034032,-150.0,0.000155,2]
[419996478,1775595034042,-6800.0,0.000155,5]
[419996479,1775595034052,-4000.0,0.00015507,2]
[419996480,1775595034063,-150.0,0.00015508,2]
[419996481,1775595034073,-2540.07,0.00015524,2]
[419996482,1775595034083,-150.0,0.000156,2]
[419996483,1775595034093,-150.0,0.000156,2]
[419996484,1775595034103,-10200.0,0.000156,5]
[419996485,1775595034114,-150.0,0.00015631,2]
[419996486,1775595034124,-150.0,0.00015644,2]
[419996487,1775595034134,-150.0,0.00015644,2]
[419996488,1775595034143,-150.0,0.0001568,2]
[419996489,1775595034153,-150.0,0.0001568,2]
[419996490,1775595034164,-338.56055774,0.00015699,2]
[419996491,1775595034173,-500.0,0.00015699,2]
[419996492,1775595034183,-500.0,0.00015699,2]
[419996493,1775595034193,-500.0,0.00015699,2]
[419996494,1775595034203,-500.0,0.00015699,2]
[419996495,1775595034213,-500.0,0.00015699,2]
[419996496,1775595034223,-500.0,0.00015699,2]
[419996497,1775595034233,-500.0,0.00015699,2]
[419996498,1775595034243,-500.0,0.00015699,2]
[419996499,1775595034253,-500.0,0.00015699,2]
[419996500,1775595034264,-500.0,0.00015699,2]
[419996501,1775595034273,-493.46007712,0.00015699,2]
[419996502,1775595034283,-500.0,0.00015699,2]
[419996503,1775595034293,-1000.0,0.000157,2]
[419996504,1775595034303,-1000.0,0.000157,2]
[419996505,1775595034313,-1000.0,0.000157,2]
[419996506,1775595034322,-1000.0,0.000157,2]
[419996507,1775595034333,-1000.0,0.000157,2]
[419996508,1775595034344,-1000.0,0.000157,2]
[419996509,1775595034354,-740.988,0.000157,2]
[419996510,1775595034364,-150.0,0.000157,2]
[419996511,1775595034374,-4063.85122211,0.000157,5]
[419996512,1775595034389,-4603.50637221,0.000157,5]
[419996513,1775595034403,-4932.64240568,0.000157,5]
[419996514,1775595034413,-2500.0,0.00015725,2]
[419996515,1775595034422,-10518.63376232,0.00015725,2]
[419996516,1775595034432,-284.43769691,0.00015727,2]
[419996517,1775595034442,-10518.63376226,0.00015744,2]
[419996518,1775595034452,-150.0,0.00015754,2]
[419996519,1775595034462,-10518.63376226,0.00015764,2]
[419996520,1775595034471,-411.91,0.00015772,2]
[419996521,1775595034481,-352.48557695,0.00015773,2]
[419996522,1775595034491,-4043.82856909,0.00015777,2]
[419996523,1775595034501,-10518.63376226,0.00015783,2]
[419996524,1775595034511,-3913.92161767,0.0001579,2]
[419996525,1775595034523,-1116.90238233,0.0001579,2]
[419996526,1775595034532,-251.731,0.0001579,2]
[419996527,1775595034542,-4043.82856902,0.00015791,2]
[419996528,1775595034552,-500.0,0.00015799,2]
[419996529,1775595034561,-500.0,0.00015799,2]
[419996530,1775595034570,-500.0,0.00015799,2]
[419996531,1775595034579,-500.0,0.00015799,2]
[419996532,1775595034588,-500.0,0.00015799,2]
[419996533,1775595034598,-500.0,0.00015799,2]
[419996534,1775595034607,-500.0,0.00015799,2]
[419996535,1775595034617,-500.0,0.00015799,2]
[419996536,1775595034626,-500.0,0.00015799,2]
[419996537,1775595034636,-500.0,0.00015799,2]
[419996538,1775595034646,-500.0,0.00015799,2]
[419996539,1775595034656,-500.0,0.00015799,2]
[419996540,1775595034666,-500.0,0.00015799,2]
[419996541,1775595034675,-500.0,0.00015799,2]
[419996542,1775595034684,-290.45108639,0.00015799,2]
[419996543,1775595034696,-209.54891361,0.00015799,2]
[419996544,1775595034705,-500.0,0.00015799,2]
[419996545,1775595034714,-500.0,0.00015799,2]
[419996546,1775595034724,-500.0,0.00015799,2]
[419996547,1775595034733,-500.0,0.00015799,2]
[419996549,1775595034742,-500.0,0.00015799,2]
[419996550,1775595034751,-60.11257903,0.00015799,2]
[419996551,1775595034763,-439.88742097,0.00015799,2]
[419996552,1775595034774,-118.03667076,0.00015799,2]
[419996553,1775595034790,-381.96332924,0.00015799,2]
[419996554,1775595034800,-500.0,0.00015799,2]
[419996555,1775595034810,-500.0,0.00015799,2]
[419996556,1775595034820,-500.0,0.00015799,2]
[419996557,1775595034829,-225.4201213,0.00015799,2]
[419996558,1775595034839,-500.0,0.00015799,2]
[419996559,1775595034848,-500.0,0.00015799,2]
[419996560,1775595034859,-500.0,0.00015799,2]
[419996561,1775595034870,-500.0,0.00015799,2]
[419996562,1775595034879,-500.0,0.00015799,2]
[419996563,1775595034890,-180.63471025,0.00015799,2]
[419996564,1775595034900,-500.0,0.00015799,2]
[419996565,1775595034909,-150.0,0.000158,2]
[419996566,1775595034919,-454.78183921,0.000158,5]
[419996610,1775595040579,-2126.0667956,0.00015732,2]
[419996611,1775595040589,-16545.21816079,0.000158,5]
[419996612,1775595040601,-10518.63376226,0.00015803,2]
[419996613,1775595040611,-4043.82856902,0.00015804,2]
[419996614,1775595040621,-1377.42282659,0.00015809,2]
[419996615,1775595040631,-200.0,0.00015809,2]
[419996616,1775595040641,-4043.82856902,0.00015818,2]
[419996617,1775595040651,-10518.63376226,0.00015822,2]
[419996618,1775595040661,-150.0,0.00015822,2]
[419996619,1775595040671,-150.0,0.00015822,2]
[419996620,1775595040680,-653.24,0.00015824,2]
[419996621,1775595040690,-500.0,0.00015824,2]
[419996622,1775595040700,-37485.5310733,0.00015825,2]
[419996623,1775595040710,-11309.8251637,0.00015825,2]
[419996624,1775595040719,-4043.82856902,0.00015832,2]
[419996625,1775595040729,-500.0,0.00015839,2]
[419996626,1775595040739,-39509.87168047,0.0001584,2]
[419996627,1775595040749,-10000.0,0.0001584,2]
[419996628,1775595040758,-10518.63376226,0.00015842,2]
[419996629,1775595040768,-4043.82856902,0.00015845,2]
[419996630,1775595040778,-4043.82856902,0.00015859,2]
[419996631,1775595040787,-10518.63376226,0.00015861,2]
[419996632,1775595040797,-4043.82856902,0.00015873,2]
[419996633,1775595040806,-150.0,0.00015877,2]
[419996634,1775595040815,-10518.63376226,0.00015881,2]
[419996635,1775595040825,-4043.82856902,0.00015886,2]
[419996636,1775595040834,-4000.0,0.00015895,2]
[419996637,1775595040844,-150.0,0.000159,2]
[419996638,1775595040853,-5000.0,0.000159,2]
[419996639,1775595040863,-10518.63376226,0.000159,2]